Cogmind - Beta 13 @@@ ROGUE MODE // 2024.06.02 @ 18:51:32 Player: H3-RMN Result: Destroyed by H-55 Commando with Gauss Rifle Performance ------------- Evolutions (3) 1500 Regions Visited (5) 1000 Robots Destroyed (40) 200 Value Destroyed (1161) 1161 Prototype IDs (6) 120 Alien Tech Used (0) 0 Bonus (305) 305 TOTAL SCORE: 4286 Bonus ------- High Alert Combat Kills 105 Entered Garrisons 200 Cogmind --------- Core Integrity 0/700 Matter 59/300 Energy 100/100 System Corruption 2% Temperature Cool (0) Movement Core (200) Ox3 Location -7/Garrison Parts ------- > --- POWER (2) -------- (None) > --- PROPULSION (3) --- (None) > --- UTILITY (6) ------ (None) > --- WEAPON (2) ------- Advanced Assault Cannon Advanced Assault Cannon > --- INVENTORY (5) ---- Relay Coupler [NC] (22) Trap Extractor (1/4 Shrapnel) Plasma Cutter Makeshift Axe Peak State ------------ > --- POWER ------------ Ion-Scrap Engine > --- PROPULSION ------- Aluminum-Scrap Exoskeleton > --- UTILITY ---------- Armored Scrap Engine Improved Heat Sink Long-range Tractor Beam Cobbler Unit > --- WEAPON ----------- Rocket Launcher Thermal Particle Construct/G > --- INVENTORY -------- Relay Coupler [NC] Trap Extractor Plasma Cutter Makeshift Axe [Rating: 45] Favorites ----------- Power Constructs Engine Constructs Propulsion Flight Unit Leg Constructs Wheel Wheel Flight Unit Flight Unit Utility Armored Scrap Engine Device Armored Scrap Engine Storage Small Storage Unit Processor Target Analyzer Hackware Makeshift System Shield Weapon Ripper Energy Gun Constructs Ballistic Gun Constructs Ballistic Cannon Advanced Assault Cannon Launcher Rocket Launcher Special Weapon Mining Laser Slashing Weapon Ripper Build | -11 -10 -10 -9 -7 -7 ------- Run | Yrd Mat Sub Rec Fac Gar Slots Evolved 6 | . . . . 6 . Power 1 | . . . . 1 . Propulsion 1 | . . . . 1 . Utility 4 | . . . . 4 . Weapon . | . . . . . . Parts Attached 40 | 7 5 3 4 15 6 Power 3 | 1 2 . . . . Engine 3 | 1 2 . . . . Core . | . . . . . . Reactor . | . . . . . . Propulsion 5 | 2 2 . 1 . . Treads . | . . . . . . Leg . | . . . . . . Wheel 2 | 2 . . . . . Hover . | . . . . . . Flight 3 | . 2 . 1 . . Utility 18 | 2 . 1 1 13 1 Device 13 | 1 . . 1 10 1 Storage 1 | 1 . . . . . Processor 2 | . . . . 2 . Hackware 2 | . . 1 . 1 . Protection . | . . . . . . Artifact . | . . . . . . Weapon 14 | 2 1 2 2 2 5 Energy Gun . | . . . . . . Energy Cannon . | . . . . . . Ballistic Gun 2 | 2 . . . . . Ballistic Cannon 4 | . . . . . 4 Launcher 3 | . . . . 2 1 Special Weapon 1 | . 1 . . . . Impact Weapon . | . . . . . . Slashing Weapon 4 | . . 2 2 . . Piercing Weapon . | . . . . . . Special Melee Weapon . | . . . . . . Unidentified Prototypes . | . . . . . . Parts Lost 19 | . . 3 1 3 12 Power 2 | . . 1 . . 1 Propulsion 3 | . . . 1 . 2 Utility 7 | . . 1 . 1 5 Weapon 7 | . . 1 . 2 4 Highest Loss Streak 9 | . . 2 1 3 9 To Critical Strikes . | . . . . . . Average Slot Usage (%) 63 | . 93 65 68 53 38 Engine 10 | . 14 4 13 7 4 Hover 1 | . . . 1 . 3 Flight 18 | . 12 28 23 6 . Device 15 | . 14 4 14 22 20 Energy Gun 3 | . . . 2 10 . Ballistic Gun 2 | . 26 8 . . 3 Slashing Weapon 8 | . . 13 11 1 . Naked Turns . | . . . . . . Heaviest Build 29 | 14 14 6 14 29 25 Greatest Support 26 | 26 26 8 20 20 20 Greatest Overweight (x) 3 | . . . 3 1 3 Average Overweight (x) . | . . . . 1 . Largest Inventory Capacity 8 | 8 8 5 5 5 5 Average Capacity 5 | 7 6 5 5 5 5 Most Carried 8 | 7 8 5 5 5 5 Average Carried 4 | 2 6 4 4 4 4 Final Capacity 8 | 8 5 5 5 5 5 Final Carried 7 | 7 5 5 5 5 4 Scrap Engine Consumption 35 | . . . 15 16 4 Constructs Created 5 | . . . 3 1 1 Constructs Modified 7 | . . . 2 3 2 Class Distribution -------------------- 73% | Construct 21% | Mutant 5% | Scavenger-Mutant Dominant Class ---------------- Mutant | -10/Materials Mutant | -10/Subcaves Construct | -9/Recycling Construct | -7/Factory Mutant | -7/Garrison Resources | -11 -10 -10 -9 -7 -7 ----------- Run | Yrd Mat Sub Rec Fac Gar Matter Collected 1225 | 209 121 83 41 441 330 Remotely 557 | . . . . 227 330 Salvage Created 1339 | 51 121 69 214 470 414 Parts 72 | 7 11 2 8 33 11 Haulers Intercepted 1 | . . . . 1 . Recyclers Shooed 1 | . . . . 1 . Parts Field Recycled . | . . . . . . Retrieved Matter . | . . . . . . Parts Self-Destructed . | . . . . . . Prevented . | . . . . . . Kills | -11 -10 -10 -9 -7 -7 ------- Run | Yrd Mat Sub Rec Fac Gar Combat Hostiles Destroyed 27 | . 5 . 1 8 13 Melee 1 | . . . . 1 . Guns 7 | . 5 . . 2 . Cannons 9 | . . . 1 . 8 AOE 9 | . . . . 4 5 Classes Destroyed 13 | 1 2 2 2 4 2 Worker 3 | . . . . 3 . Builder 2 | . . . . 2 . Tunneler 4 | 2 . . . 2 . Hauler 1 | . . . . 1 . Recycler 3 | . . . 2 1 . Swarmer 7 | . 3 . . 3 1 Grunt 13 | . 2 . . 3 8 Brawler 1 | . . . . . 1 Duelist 2 | . . . . . 2 Sentry 2 | . . . 1 . 1 Programmer 2 | . . . . 2 . Artisan 1 | . . 1 . . . Cobbler 1 | . . 1 . . . Best Kill Streak 13 | 2 5 . 1 13 8 Combat Bots Only 8 | . 5 . 1 7 8 Max Kills in Single Turn 2 | 1 1 1 1 2 2 Gunslinging . | . . . . . . Exploded 2 | . . . . 1 2 Melee 1 | . . . . 1 . Uniques/NPCs Destroyed . | . . . . . . Combat | -11 -10 -10 -9 -7 -7 -------- Run | Yrd Mat Sub Rec Fac Gar Hostile Shots Fired 315 | . 18 43 10 57 187 Missed 89 | . 3 19 2 16 49 Damage Taken 3291 | . 120 362 122 654 2033 Core 928 | . 32 164 15 123 594 Absorbed by Shields 61 | . . . . . 61 Regen/Repaired (Parts) 214 | . . . 13 58 143 Core Remaining (%) 57 | 100 . . 15 . . Volleys Fired 104 | 4 17 14 7 33 29 Largest 2 | 2 2 1 1 2 2 Hottest 107 | 40 100 100 52 107 96 Shots Fired 158 | 8 30 14 7 52 47 Gun 85 | 8 26 . 1 44 6 Cannon 42 | . . . 6 . 36 Launcher 13 | . . . . 8 5 Special 18 | . 4 14 . . . Kinetic 70 | 8 26 . . . 36 Thermal 30 | . 4 14 6 . 6 Explosive 13 | . . . . 8 5 Electromagnetic 45 | . . . 1 44 . Robot Hit Streak 13 | 3 6 . 13 5 6 Robot Miss Streak 5 | 2 5 . 1 5 3 Penetration Max . | . . . . . . Secondary Targets . | . . . . . . Shots Hit Robots 91 | 4 16 4 10 32 25 Core Hits 77 | 2 8 2 5 22 38 Critical Kills . | . . . . . . Critical Parts Destroyed . | . . . . . . Critical Strikes 4 | . . . . 2 2 Blast 2 | . . . . . 2 Sever 2 | . . . . 2 . Melee Attacks 20 | . . 11 4 5 . Impact . | . . . . . . Slashing 20 | . . 11 4 5 . Piercing . | . . . . . . Sneak Attacks 7 | . . 4 3 . . Combat Hostiles 1 | . . . 1 . . Follow-up Attacks 2 | . . 2 . . . Damage Inflicted 3897 | 41 163 239 398 1286 1770 Guns 708 | 41 163 . . 455 49 Cannons 643 | . . . 111 . 532 Explosions 1893 | . . . . 726 1167 Melee 631 | . . 239 287 105 . Ramming 22 | . . . . . 22 Kinetic 736 | 41 163 . . . 532 Thermal 308 | . . . 111 148 49 Explosive 1745 | . . . . 578 1167 Electromagnetic 455 | . . . . 455 . Impact . | . . . . . . Slashing 631 | . . 239 287 105 . Piercing . | . . . . . . Highest Corruption 2 | . . . . 2 2 Average Corruption 2 | . . . . 2 2 Corruption Purged . | . . . . . . Corruption Blocked . | . . . . . . Effects 7 | . . . . 3 4 Message Errors 2 | . . . . 1 1 Heat Flow Errors 3 | . . . . 1 2 Data Loss (minor) 1 | . . . . . 1 Alerts 1 | . . . . 1 . Overload Shots . | . . . . . . Overflow Damage 79 | . . 37 . . 42 Projectiles 35 | . . . . . 35 Explosions 7 | . . . . . 7 Melee 37 | . . 37 . . . Knockbacks 2 | . . . . . 2 Impact . | . . . . . . Kinetic 2 | . . . . . 2 Secondary . | . . . . . . Self-Inflicted Damage 117 | . . . . 41 76 Shots 5 | . . . . 1 4 Rammed 4 | . . . . . 4 Targets Rammed 4 | . . . . . 4 Kicked . | . . . . . . Crushed . | . . . . . . Highest Temperature 276 | . 98 . 129 276 247 Average Temperature 116 | . 36 . 60 129 146 Received Heat Transfer 699 | . 12 66 27 225 369 Siege Activations . | . . . . . . Robots Corrupted 1 | . . . . 1 . Combat Hostiles 1 | . . . . 1 . Parts Fried 2 | . . . . 2 . Impact Corruptions . | . . . . . . Robots Melted . | . . . . . . Combat Hostiles . | . . . . . . Parts Melted . | . . . . . . Heat Transferred 274 | . . . . 200 74 Parts Sabotaged . | . . . . . . Parts Stolen . | . . . . . . Parts Stripped . | . . . . . . Power Chain Reactions 1 | . . . . 1 . Alert | -11 -10 -10 -9 -7 -7 ------- Run | Yrd Mat Sub Rec Fac Gar Peak Influence 601 | 10 156 . 142 417 601 Initial 327 | . 6 . 67 327 300 Average 132 | 2 103 . 31 340 365 Maximum Alert Level 2 | . . . . 2 2 Low Security (%) 69 | 100 100 . 100 1 . Level 1 25 | . . . . 90 75 Level 2 4 | . . . . 8 24 Level 3 . | . . . . . . Level 4 . | . . . . . . Level 5 . | . . . . . . High Security . | . . . . . . Max Security . | . . . . . . Squads Dispatched 3 | . 1 . . 2 . Investigation 2 | . 1 . . 1 . Extermination . | . . . . . . Reinforcement . | . . . . . . Assault . | . . . . . . Garrison 1 | . . . . 1 . Intercept . | . . . . . . Searches Triggered . | . . . . . . Construction Impeded . | . . . . . . Haulers Reinforced . | . . . . . . Active Scanning Responses . | . . . . . . Cargo Convoy Interrupts . | . . . . . . Stealth | -11 -10 -10 -9 -7 -7 --------- Run | Yrd Mat Sub Rec Fac Gar Distress Signals 2 | . 1 . . 1 . Communications Jammed . | . . . . . . Distress Signals . | . . . . . . Times Spotted 65 | . 6 22 1 12 24 Peak Tracking Total 12 | . 3 10 1 4 12 Tactical Retreats 8 | . 1 4 . . 3 Traps | -11 -10 -10 -9 -7 -7 ------- Run | Yrd Mat Sub Rec Fac Gar Traps Triggered 7 | . 1 . . 1 5 Indirectly . | . . . . . . Trap Hack Attempts . | . . . . . . Triggered . | . . . . . . Disarmed . | . . . . . . Reprogrammed . | . . . . . . Reused 1 | . . 1 . . . Traps Extracted . | . . . . . . Installed 1 | . . 1 . . . Triggered . | . . . . . . Most Traps Carried 1 | . . . . 1 1 Machines | -11 -10 -10 -9 -7 -7 ---------- Run | Yrd Mat Sub Rec Fac Gar Machines Disabled . | . . . . . . Max in Single Turn . | . . . . . . Machines Repaired . | . . . . . . Machines Dismantled . | . . . . . . Machines Sabotaged . | . . . . . . Overloaded Fab Kills . | . . . . . . Hacking | -11 -10 -10 -9 -7 -7 --------- Run | Yrd Mat Sub Rec Fac Gar Machines Accessed 13 | . . . 8 3 2 Terminals 7 | . . . 3 2 2 Fabricators . | . . . . . . Repair Stations . | . . . . . . Recycling Units 5 | . . . 5 . . Scanalyzers . | . . . . . . Garrison Access 1 | . . . . 1 . Total Hacks 31 | . . . 20 7 4 Successful 19 | . . . 15 3 1 Failed 12 | . . . 5 4 3 Catastrophic 1 | . . . 1 . . Database Lockouts . | . . . . . . Manual 16 | . . . 12 4 . Terminals 21 | . . . 11 6 4 Fabricators . | . . . . . . Repair Stations . | . . . . . . Recycling Units 9 | . . . 9 . . Scanalyzers . | . . . . . . Garrison Access 1 | . . . . 1 . Terminal Hacks 6 | . . . 4 1 1 Part Schematic 1 | . . . . 1 . Robot Analysis 1 | . . . 1 . . Prototype ID Bank 1 | . . . 1 . . Emergency Access Points 1 | . . . . . 1 Zone Layout 2 | . . . 2 . . Fabricator Hacks . | . . . . . . Repair Station Hacks . | . . . . . . Recycling Unit Hacks 3 | . . . 3 . . Report Inventory 2 | . . . 2 . . Retrieve Components 1 | . . . 1 . . Scanalyzer . | . . . . . . Garrison Access Hacks 1 | . . . . 1 . Unlock Access 1 | . . . . 1 . Unauthorized Hacks 9 | . . . 8 1 . Terminals 4 | . . . 3 1 . Track 1 | . . . 1 . . Botnet 3 | . . . 2 1 . Fabricators . | . . . . . . Repair Stations . | . . . . . . Recycling Units 5 | . . . 5 . . Mask 1 | . . . 1 . . Tunnel 4 | . . . 4 . . Scanalyzers . | . . . . . . Garrison Access . | . . . . . . Data Cores Recovered . | . . . . . . Used . | . . . . . . Hacking Detections 8 | . . . 3 3 2 Full Trace Events 3 | . . . 2 1 . Feedback Events . | . . . . . . Feedback Blocked . | . . . . . . Robot Schematics Acquired . | . . . . . . Robots Built . | . . . . . . Authchips . | . . . . . . Time . | . . . . . . Total Robot Build Rating . | . . . . . . Part Schematics Acquired 1 | . . . . 1 . Parts Built . | . . . . . . Authchips . | . . . . . . Time . | . . . . . . Total Part Build Rating . | . . . . . . Parts Repaired . | . . . . . . Time . | . . . . . . Parts Recycled . | . . . . . . Recycled Matter . | . . . . . . Retrieved Matter . | . . . . . . Retrieved Components 3 | . . . 3 . . Parts Scanalyzed . | . . . . . . Part Schematics Acquired . | . . . . . . Parts Damaged . | . . . . . . Bothacking | -11 -10 -10 -9 -7 -7 ------------ Run | Yrd Mat Sub Rec Fac Gar Used RIF Installer . | . . . . . . Robots Hacked . | . . . . . . Non-combat . | . . . . . . Combat . | . . . . . . Robot Hacks Applied . | . . . . . . Relay Couplers Released 4 | . . . . 4 . Programmers 4 | . . . . 4 . Fabnet Peak Effective % . | . . . . . . Robots Rewired . | . . . . . . Allies Hacked . | . . . . . . Hacks Repelled . | . . . . . . Allies | -11 -10 -10 -9 -7 -7 -------- Run | Yrd Mat Sub Rec Fac Gar Total Allies . | . . . . . . Largest Group . | . . . . . . Highest-Rated Group . | . . . . . . Highest-Rated Ally . | . . . . . . Total Orders . | . . . . . . Ally Attacks . | . . . . . . Total Damage . | . . . . . . Kills . | . . . . . . Allies Corrupted . | . . . . . . Allies Melted . | . . . . . . Intel | -11 -10 -10 -9 -7 -7 ------- Run | Yrd Mat Sub Rec Fac Gar Robot Analysis Total 1 | . . . 1 . . Derelict Logs Recovered 1 | . . 1 . . . Drone Launches . | . . . . . . Drone Recoveries . | . . . . . . Exploration | -11 -10 -10 -9 -7 -7 ------------- Run | Yrd Mat Sub Rec Fac Gar Turns Passed 3216 | 80 137 307 1800 539 353 Spaces Moved 1547 | 58 57 581 430 225 196 Core 90 | 3 . . . . 87 Treads . | . . . . . . Legs 4 | . . . . . 4 Wheels 84 | 55 29 . . . . Hover 223 | . . . 104 37 82 Flight 1146 | . 28 581 326 188 23 Fastest Speed 37 | 50 37 37 37 161 50 Average Speed 92 | 87 63 37 126 161 114 Slowest Speed 280 | 90 90 37 280 167 200 Overloaded Moves . | . . . . . . Propulsion Burnouts . | . . . . . . Robots Hopped 3 | . . 3 . . . Cave-ins Triggered . | . . . . . . Exploration Rate (%) 23 | 3 13 46 47 6 27 Regions Visited 5 Branch Regions 2 Pre-discovered Areas 5 | . . 1 4 . . Known Exits Taken 1 | . . . . 1 . Unknown Exits Taken 4 | 1 1 1 1 . . Scrap Searched 13 | . . 13 . . . Spaces Dug 1 | . . 1 . . . Terrain Destroyed 36 | . . 1 . 28 7 Melee 1 | . . 1 . . . Projectile . | . . . . . . AOE 35 | . . . . 28 7 Terrain Rammed . | . . . . . . Walls Destroyed . | . . . . . . Machines Disabled . | . . . . . . Actions | -11 -10 -10 -9 -7 -7 --------- Run | Yrd Mat Sub Rec Fac Gar Total 3111 | 76 124 617 1674 344 276 Wait 1317 | 1 32 3 1219 51 11 Move 1536 | 57 56 574 429 225 195 Hop 3 | . . 3 . . . Pick Up 21 | 7 5 5 3 1 . Fast Attach 22 | 7 1 1 2 7 4 Attach 8 | . . 1 1 4 2 Detach 6 | . . . 1 4 1 Swap 10 | . 4 1 1 4 . Drop 31 | . 9 5 7 10 . Fire 104 | 4 17 14 7 33 29 Melee 18 | . . 9 4 5 . Ram 4 | . . . . . 4 Kick . | . . . . . . Crush . | . . . . . . Escape Stasis 30 | . . . . . 30 Rewire . | . . . . . . Trap 1 | . . 1 . . . Miscellaneous . | . . . . . . Route ------- -11/Scrapyard -10/Materials -10/Subcaves (discovered 3 exits: [*Mat x2] / *Rec) -9/Recycling -7/Factory -7/Garrison (discovered 1 exit: [*Fac]) History --------- Turn | Location | Event 23 | -11/Scrapyard | Discovered new exit (range 15) 81 | -11/Scrapyard | Entered Materials 218 | -10/Materials | Discovered new exit (range 2) 218 | -10/Materials | Entered Subcaves 222 | -10/Subcaves | Ambushed by Subdwellers from Twisted Machinery 226 | -10/Subcaves | A swath of the cavern ceiling suddenly collapsed 261 | -10/Subcaves | Shifting Twisted Machinery released Sub. Shrapnel Launcher 265 | -10/Subcaves | Shifting Twisted Machinery released Flamer 374 | -10/Subcaves | Learned location of Zion (-6) 374 | -10/Subcaves | Met a Zionite searching for "candidates" 378 | -10/Subcaves | Learned 4 Materials zone layouts 405 | -10/Subcaves | Ambushed by Subdwellers from Twisted Machinery 427 | -10/Subcaves | Disturbed a concealed Subdweller 445 | -10/Subcaves | Ambushed by Subdwellers from Twisted Machinery 481 | -10/Subcaves | Ambushed by angry Subdweller bent on revenge 493 | -10/Subcaves | Core integrity fell below 50% 519 | -10/Subcaves | Discovered new exit (range 15) 519 | -10/Subcaves | Discovered new exit (range 11) 522 | -10/Subcaves | Discovered new exit (range 8) 525 | -10/Subcaves | Entered Recycling 527 | -9/Recycling | Found Scrap Engine 897 | -9/Recycling | Build established: Construct 1906 | -9/Recycling | Core integrity fell below 20% 2314 | -9/Recycling | Discovered new exit (range 14) 2325 | -9/Recycling | Entered Factory 2325 | -7/Factory | Evolved 6 slots: Power x1, Propulsion x1, Utility x4 2779 | -7/Factory | Garrison activated, responded to threat 2838 | -7/Factory | Lost 3 parts (1u2w) 2841 | -7/Factory | Destroyed 7 combat bots 2864 | -7/Factory | Identified exit to Garrison 2864 | -7/Factory | Entered Garrison 2868 | -7/Garrison | Triggered checkpoint 3075 | -7/Garrison | Triggered checkpoint 3087 | -7/Garrison | Triggered checkpoint 3120 | -7/Garrison | Discovered new exit (range 12) 3125 | -7/Garrison | Attempted to access garrison exit controls, blocked by remote lockdown 3131 | -7/Garrison | Core integrity fell below 50% 3163 | -7/Garrison | Lost 9 parts (1p2n4u2w) 3188 | -7/Garrison | Core integrity fell below 20% 3217 | -7/Garrison | Destroyed by H-55 Commando with Gauss Rifle Last Messages --------------- 03181_ Slug penetrates Wall. 03187_ Y-54 Guardian destroyed. 03190_ Adv. Assault Cannon destroyed. 03190_ Slug penetrates Wall. 03191_ Acquired Adv. Assault Cannon. 03194_ Scrap Engine destroyed. 03198_ L-41 Fighter knocked back. 03198_ Destroyed Carbon-fiber Leg. 03198_ L-41 Fighter suffers critical hit (Blast). 03198_ Destroyed Imp. Deuterium Engine. 03198_ L-41 Fighter destroyed. 03199_ Slug penetrates Wall. 03201_ G-47 Trooper knocked back. 03205_ Slug penetrates Wall. 03210_ Destroyed Particle Gun. 03210_ G-47 Trooper Lgt. Nuclear Core blasted off. 03210_ G-47 Trooper destroyed. 03211_ Slug penetrates Wall. Map ----- +----------------------------------------------------+ | ???????????????" #????????????????? | | ???????????????" = #????????????????? | | ???????????????# ## ###????????????????? | | ???????????????# ## " ## #############??????? | | ?????????????? + " #??????? | | ?????????????? + " #??????? | | ???????????????# ####+##### #??????? | | ???????????????# ##""""###+##????????# #??????? | | ???????????????# ????????? ??????????# #??????? | | ???????????????# ??????+??? ??????????# #??????? | | ???????????????+???????????? ??????????# #??????? | | ???????????????????????????????????????+ +??????? | | ???????????????????????????????????????# #????#?? | | ???????????????????????????????????????# #??? #?? | | ???????++???+??????????????????????????# ####+### | | ????????????????????????????????##?????# | | ???????????????????????????# #### ###### %%%% | | ???????????????????????????# + ######## | | ??????????????????+????????# ###### #####+#??????? | | ?????????????????????????????#????# #????????????? | | ????????????????????????????=#????# #????????????? | | ?????????????????????????###s###### "????????????? | | ?????????????????????????#!h "?+??????????? | | ????????????????????????##s######## "????????????? | | ????????????????????????#!s%#????## #????????????? | | ????????????????????????#@%*#????#T #????????????? | | ????????????????????????#!!*#????## #????????????? | | ?????????????????+??????#!!=#?????# #????????????? | | ????????????????????????#####?????# #????????????? | | ??????????????????????????????????# #????????????? | | ?????????????????????????????????" #????????????? | | ????????????+???????????????????#" #????????????? | | ????????????????????????????????#" #????????????? | | ??+???+??+??????????????????????#"#+#????????????? | | ????????????????????????????????##???????????????? | | ?????????????????????????????????????????????????? | | ?????????????????????????????????????????????????? | | ?????????????????????????????????????????????????? | | ?????????????????????????????????????????????????? | | ?????????????????????????????????????????????????? | | ?????????????????????????????????????????????????? | | ?????????????????????????????????????????????????? | | ?????????????????????????????????????????????????? | | ?????????????????????????????????????????????????? | | ?????????????????????????????????????????????????? | | ?????????????????????????????????????????????????? | | ?????????????????????????????????????????????????? | | ?????????????????????????????????????????????????? | | ?????????????????????????????????????????????????? | | ?????????????????????????????????????????????????? | +----------------------------------------------------+ Best States ------------- Heat Dissipation 48 Energy Generation 14 Energy Capacity 304 Matter Stores 300 Matter Capacity 300 Sight Range 16 Terrain Scan Density 10 Evasion (%) 62 Targeting Accuracy 6 Target Analysis 5 Offensive Hacking 10 Defensive Hacking 11 Item Schematics ----------------- Cmb. Gravmag System | -7/Factory | Hacked Robot Schematics ------------------ None Fabricated ------------ Nothing Alien Tech Used ----------------- None Achievements -------------- None Challenges ------------ None Game ------ Seed ChainIonNullifier Manual? 0 Play Time 00:33:18 Cumulative 791.2 hours Start 2024.06.02 @ 18:22:06 End 2024.06.02 @ 18:51:32 Sessions 1 Manual Loads 0 Difficulty Rogue Special Mode None Game No. 326 Rogue 296 Adventurer 3 Explorer 27 Win Type - Total 17 Types 10/3/2/1/0/1/0/0/0 Lore% 92 Gallery% 97 Achievement% 86 Wizard Run 0 Options --------- Layout 2 ASCII 0 Keyboard 0 Movement Numpad Keybinds 0 Fullscreen 2 Font 24/Smallcaps Map View 50x44 Zoom Use 0% Tactical HUD 1 Map Filters NONE Filters NONE Steam 1 RUN: f349d5f5-8803-413f-8ebe-0864966dedbc